fUST/lending_fUST_20250926
["ID","MTS","AMOUNT","RATE_DAILY","PERIOD"]
[387766705,1758840646878,-832.19,0.00022,2]
[387766707,1758840646888,-233.66602051,0.0002201,2]
[387766709,1758840646897,-160.0,0.0002201,2]
[387766711,1758840646907,-160.0,0.0002201,2]
[387766713,1758840646917,-160.0,0.0002201,2]
[387766715,1758840646926,-417.15472785,0.0002201,2]
[387766717,1758840646936,-160.0,0.0002201,2]
[387766719,1758840646945,-160.0,0.0002201,2]
[387766721,1758840646955,-160.0,0.0002201,2]
[387766723,1758840646964,-2597.67235993,0.00022044,2]
[387766725,1758840646973,-480.0,0.00022067,2]
[387766727,1758840646982,-480.0,0.00022067,2]
[387766729,1758840646991,-1000.91,0.00022067,2]
[387766731,1758840647000,-480.0,0.00022067,2]
[387766733,1758840647010,-480.0,0.00022068,2]
[387766735,1758840647021,-480.0,0.00022068,2]
[387766737,1758840647030,-480.0,0.00022068,2]
[387766739,1758840647039,-480.0,0.00022068,2]
[387766741,1758840647049,-480.0,0.00022068,2]
[387766743,1758840647058,-259.36,0.00022069,2]
[387766745,1758840647068,-480.0,0.00022069,2]
[387766747,1758840647078,-1082.17614748,0.00022151,2]
[387766749,1758840647089,-480.0,0.00022341,2]
[387766751,1758840647098,-480.0,0.00022341,2]
[387766753,1758840647108,-1000.91,0.00022341,2]
[387766755,1758840647117,-480.0,0.00022341,2]
[387766757,1758840647128,-480.0,0.00022342,2]
[387766759,1758840647138,-378.24,0.00022342,2]
[387766761,1758840647147,-480.0,0.00022342,2]
[387766763,1758840647156,-565.10608543,0.00022342,2]
[387766765,1758840647165,-480.0,0.00022342,2]
[387766768,1758840647175,-480.0,0.00022343,2]
[387766770,1758840647184,-248.2120133,0.00022357,2]
[387766772,1758840647194,-500.0,0.00022479,2]
[387766774,1758840647203,-500.0,0.00022492,2]
[387766776,1758840647213,-500.0,0.00022533,2]
[387766778,1758840647225,-480.0,0.00022615,2]
[387766780,1758840647235,-480.0,0.00022615,2]
[387766782,1758840647244,-1000.91,0.00022615,2]
[387766784,1758840647254,-157.32,0.00022615,2]
[387766786,1758840647263,-480.0,0.00022616,2]
[387766788,1758840647273,-480.0,0.00022616,2]
[387766790,1758840647283,-480.0,0.00022616,2]
[387766792,1758840647293,-480.0,0.00022617,2]
[387766794,1758840647304,-500.0,0.00022762,2]
[387766796,1758840647314,-500.0,0.00022762,2]
[387766798,1758840647324,-480.0,0.00022889,2]
[387766800,1758840647334,-480.0,0.00022889,2]
[387766802,1758840647343,-1000.91,0.00022889,2]
[387766804,1758840647352,-480.0,0.0002289,2]
[387766806,1758840647362,-480.0,0.0002289,2]
[387766808,1758840647371,-480.0,0.0002289,2]
[387766809,1758840647380,-480.0,0.00022891,2]
[387766811,1758840647390,-500.0,0.00022994,2]
[387766813,1758840647399,-160.0,0.00023,3]
[387766815,1758840647408,-160.0,0.00023,3]
[387766817,1758840647418,-160.0,0.00023,2]
[387766819,1758840647428,-500.0,0.00023077,2]
[387766821,1758840647437,-2597.67235993,0.00023116,2]
[387766823,1758840647447,-480.0,0.00023163,2]
[387766825,1758840647457,-480.0,0.00023163,2]
[387766828,1758840647466,-1000.91,0.00023163,2]
[387766829,1758840647476,-482.94,0.00023164,2]
[387766831,1758840647486,-480.0,0.00023164,2]
[387766834,1758840647496,-480.0,0.00023164,2]
[387766836,1758840647505,-480.0,0.00023165,2]
[387766838,1758840647514,-480.0,0.00023437,2]
[387766840,1758840647523,-314.36,0.00023437,2]
[387766841,1758840647533,-1000.91,0.00023437,2]
[387766844,1758840647542,-480.0,0.00023438,2]
[387766846,1758840647551,-480.0,0.00023438,2]
[387766848,1758840647560,-480.0,0.00023439,2]
[387766849,1758840647569,-1082.17614748,0.00023475,2]
[387766850,1758840647578,-500.0,0.00023528,2]
[387766851,1758840647587,-500.0,0.00023573,2]
[387766852,1758840647597,-500.0,0.00023608,2]
[387766853,1758840647606,-500.0,0.00023608,2]
[387766854,1758840647616,-500.0,0.00023608,2]
[387766855,1758840647625,-585.34941517,0.00023608,2]
[387766856,1758840647634,-500.0,0.00023608,2]
[387766857,1758840647643,-500.0,0.00023608,2]
[387766858,1758840647652,-500.0,0.00023608,2]
[387766859,1758840647661,-500.0,0.00023608,2]
[387766860,1758840647670,-500.0,0.00023608,2]
[387766861,1758840647679,-500.0,0.00023608,2]
[387766862,1758840647688,-500.0,0.00023608,2]
[387766863,1758840647697,-500.0,0.00023608,2]
[387766864,1758840647706,-335.15449278,0.00023608,2]
[387766865,1758840647715,-480.0,0.00023711,2]
[387766867,1758840647725,-1000.91,0.00023711,2]
[387766869,1758840647734,-423.96,0.00023712,2]
[387766871,1758840647743,-480.0,0.00023712,2]
[387766872,1758840647752,-480.0,0.00023713,2]
[387766873,1758840647762,-978.0,0.00023782,2]
[387766874,1758840647772,-2160.0,0.00023782,2]
[387766875,1758840647782,-635.0,0.00023782,2]
[387766876,1758840647792,-500.0,0.00023855,2]
[387766877,1758840647802,-500.0,0.00023855,2]
[387766878,1758840647816,-501.20933226,0.00023855,2]
[387766879,1758840647825,-6415.8318049,0.00023855,2]
[387766880,1758840647835,-500.0,0.00023888,2]
[387766881,1758840647849,-500.0,0.00023931,2]
[387766882,1758840647859,-480.0,0.00023985,2]
[387766883,1758840647869,-1000.91,0.00023985,2]
[387766884,1758840647879,-480.0,0.00023986,2]
[387766885,1758840647889,-480.0,0.00023987,2]
[387766886,1758840647905,-417.15472785,0.00024,3]
[387766887,1758840647916,-250.0,0.00024072,2]
[387766888,1758840647926,-500.0,0.00024075,2]
[387766889,1758840647935,-151.0,0.000241,8]
[387766890,1758840647944,-1000.0,0.00024156,2]
[387766891,1758840647954,-2597.67235993,0.00024187,2]
[387766892,1758840647964,-612.87,0.00024259,2]
[387766893,1758840647974,-1000.91,0.00024259,2]
[387766894,1758840647983,-466.14,0.0002426,2]
[387766895,1758840647993,-561.48,0.00024261,2]
[387766896,1758840648003,-151.0,0.000243,8]
[387766897,1758840648013,-293.85068442,0.00024304,2]
[387766898,1758840648023,-1000.91,0.00024533,2]
[387766899,1758840648034,-655.995,0.00024647,7]
[387766900,1758840648045,-304.6761998,0.00024658,2]
[387766901,1758840648055,-1500.0,0.00024704,2]
[387766902,1758840648065,-4000.0,0.00024741,4]
[387766903,1758840648075,-1082.17614748,0.000248,2]
[387766904,1758840648085,-1000.91,0.00024807,2]
[387766905,1758840648095,-163.141003,0.000249,2]
[387766906,1758840648105,-151.0,0.000249,7]
[387766907,1758840648116,-151.0,0.000249,7]
[387766908,1758840648126,-151.0,0.000249,7]
[387766909,1758840648136,-151.0,0.000249,7]
[387766910,1758840648147,-151.0,0.000249,7]
[387766911,1758840648157,-415841.25089032,0.000249,2]
[387766912,1758840648274,-666.44030942,0.00019401,2]
[387766913,1758840648284,-500.0,0.00019875,2]
[387766914,1758840648294,-12622.60549058,0.000249,2]
[387766915,1758840648308,-49573.5238961,0.000249,2]
[387766916,1758840648318,-151.0,0.000249,7]
[387766917,1758840648327,-151.0,0.000249,7]
[387766918,1758840648337,-151.0,0.000249,7]
[387766919,1758840648347,-500.0,0.00024944,2]
[387766920,1758840648357,-501.87578583,0.00024959,2]
[387766921,1758840648367,-417.15472785,0.00025,10]
[387766922,1758840648376,-1000.91,0.00025081,2]
[387766923,1758840648386,-2000.0,0.00025252,2]
[387766924,1758840648396,-2597.67235993,0.00025259,3]
[387766925,1758840648406,-832.19,0.000253,2]
[387766926,1758840648415,-500.0,0.0002535,7]
[387766927,1758840648425,-1000.91,0.00025355,2]
[387766928,1758840648435,-151.0,0.0002548,2]
[387766929,1758840648444,-151.0,0.0002548,2]
[387766930,1758840648523,-1000.96,0.00025629,2]
[387766931,1758840648547,-151.0,0.00025754,2]
[387766932,1758840648558,-2500.0,0.000258,2]
[387766933,1758840648567,-8145.48977941,0.00026,2]
[387766934,1758840648577,-499.66635594,0.00026,14]
[387766935,1758840648586,-157.0,0.00026028,2]
[387766936,1758840648596,-6415.8318049,0.0002611,2]
[387766937,1758840648605,-192.15743963,0.0002616,2]
[387766938,1758840648615,-500.0,0.00026186,7]
[387766939,1758840648624,-2597.67235993,0.00026331,5]
[387766940,1758840648634,-3000.0,0.00026348,2]
[387766941,1758840648643,-500.0,0.00026654,7]
[387766942,1758840648652,-500.0,0.00026711,7]
[387766943,1758840648662,-978.0,0.00026782,2]
[387766944,1758840648671,-2160.0,0.00026782,2]
[387766945,1758840648681,-635.0,0.00026782,2]
[387766946,1758840648690,-696.28757555,0.00026896,2]
[387766947,1758840648700,-680.92306619,0.00027,5]
[387766948,1758840648710,-34699.59751314,0.00027,14]
[387766949,1758840648719,-600.0,0.00027,14]
[387766950,1758840648729,-3321.95018437,0.00027079,2]
[387766951,1758840648738,-168.0,0.00027192,2]
[387766952,1758840648748,-168.0,0.00027303,2]
[387766953,1758840648758,-480.0,0.00027397,2]
[387766954,1758840648768,-214.48432415,0.00027397,5]
[387766955,1758840648778,-2597.67235993,0.00027403,7]
[387766956,1758840648787,-168.0,0.00027409,2]
[387766957,1758840648797,-168.0,0.00027508,2]
[387766958,1758840648807,-168.0,0.00027632,2]
[387766959,1758840648816,-973.8358085,0.00027635,7]
[387766960,1758840648826,-500.0,0.00027724,7]
[387766961,1758840648836,-417.15472785,0.000278,7]
[387766962,1758840648846,-168.0,0.00027959,2]
[387766963,1758840648855,-2000.01,0.00028,2]
[387766964,1758840648865,-328.16,0.00028219,14]
[387766965,1758840648875,-500.0,0.00028324,7]
[387766966,1758840648885,-500.0,0.00028326,7]
[387766967,1758840648895,-2597.67235993,0.00028475,9]
[387766968,1758840648905,-513.25006905,0.00028556,2]
[387766969,1758840648915,-500.0,0.00028835,7]
[387766970,1758840648925,-500.0,0.00028861,7]
[387766971,1758840648935,-233.66602051,0.000289,7]
[387766972,1758840648944,-328.16,0.00028904,15]
[387766973,1758840648954,-160.0,0.00028937,7]
[387766974,1758840648964,-163.141003,0.0002894,2]
[387766975,1758840648974,-832.19,0.00029,2]
[387766976,1758840648983,-160.0,0.00029,10]
[387766977,1758840648993,-390.4368942,0.00029179,30]
[387766978,1758840649003,-390.4368942,0.00029179,30]
[387766979,1758840649013,-390.4368942,0.00029179,30]
[387766980,1758840649023,-390.4368942,0.00029179,30]
[387766981,1758840649033,-390.4368942,0.00029179,30]
[387766982,1758840649043,-390.4368942,0.00029179,30]
[387766983,1758840649054,-390.4368942,0.00029179,30]
[387766984,1758840649063,-390.4368942,0.00029179,30]
[387766985,1758840649073,-390.4368942,0.00029179,30]
[387766986,1758840649083,-390.4368942,0.00029179,30]
[387766987,1758840649093,-390.4368942,0.00029179,30]
[387766988,1758840649103,-390.4368942,0.00029179,30]
[387766989,1758840649113,-390.4368942,0.00029179,30]
[387766990,1758840649122,-390.4368942,0.00029179,30]
[387766991,1758840649132,-390.4368942,0.00029179,30]
[387766992,1758840649142,-390.4368942,0.00029179,30]
[387766993,1758840649151,-390.4368942,0.00029179,30]
[387766994,1758840649161,-390.4368942,0.00029179,30]
[387766995,1758840649171,-390.4368942,0.00029179,30]
[387766996,1758840649182,-1947.169564,0.0002918,5]
[387766997,1758840649191,-1000.0,0.000292,5]
[387766998,1758840649200,-1000.0,0.0002922,5]
[387766999,1758840649210,-1000.0,0.0002924,5]
[387767000,1758840649223,-1000.0,0.0002926,5]
[387767001,1758840649233,-1000.0,0.0002928,5]
[387767002,1758840649243,-1000.0,0.000293,5]
[387767003,1758840649253,-1000.0,0.0002932,5]
[387767004,1758840649265,-1000.0,0.0002934,5]
[387767005,1758840649275,-1000.0,0.0002936,5]
[387767006,1758840649285,-1000.0,0.0002938,5]
[387767007,1758840649294,-1157.861594,0.0002938,5]
[387767008,1758840649305,-1000.0,0.000294,5]
[387767009,1758840649315,-1000.0,0.000294,5]
[387767010,1758840649325,-56772.60716561,0.0002944,2]
[387767012,1758840794203,160.0,0.00021,6]
[387767013,1758840817970,160.0,0.00021,6]
[387767019,1758841159892,260.0,0.00030032,120]
[387767020,1758841182315,297.0,0.00030032,120]
[387767024,1758841680133,258.79,0.00017982,2]
[387767367,1758841838908,-1106.0,0.00019325,2]
[387767369,1758841838918,-276.69502279,0.00019326,2]
[387767371,1758841838928,-480.0,0.00019326,2]
[387767373,1758841838938,-480.0,0.00019326,2]
[387767375,1758841838947,-480.0,0.00019326,2]
[387767377,1758841838956,-480.0,0.00019326,2]
[387767378,1758841838966,-480.0,0.00019326,2]
[387767380,1758841838975,-480.0,0.00019326,2]
[387767382,1758841838985,-480.0,0.00019326,2]
[387767384,1758841838994,-261.4,0.00019326,2]
[387767386,1758841839003,-500.0,0.00019344,2]
[387767388,1758841839013,-500.0,0.00019344,2]
[387767390,1758841839022,-500.0,0.00019344,2]
[387767392,1758841839032,-500.0,0.00019344,2]
[387767395,1758841839042,-500.0,0.00019344,2]
[387767397,1758841839052,-500.0,0.00019344,2]
[387767398,1758841839060,-500.0,0.00019344,2]
[387767400,1758841839070,-500.0,0.00019344,2]
[387767402,1758841839080,-500.0,0.00019344,2]
[387767404,1758841839089,-500.0,0.00019344,2]
[387767407,1758841839099,-570.73206436,0.00019344,2]
[387767408,1758841839108,-500.0,0.00019344,2]
[387767411,1758841839117,-500.0,0.00019344,2]
[387767412,1758841839127,-500.0,0.00019344,2]
[387767414,1758841839137,-500.0,0.00019344,2]
[387767417,1758841839146,-500.0,0.00019344,2]
[387767419,1758841839156,-500.0,0.00019344,2]
[387767421,1758841839165,-638.67345771,0.00019344,2]
[387767422,1758841839175,-500.0,0.00019344,2]
[387767424,1758841839184,-555.15980516,0.00019344,2]
[387767426,1758841839193,-168.62282082,0.00019344,2]
[387767428,1758841839203,-500.0,0.00019344,2]
[387767431,1758841839213,-500.0,0.00019344,2]
[387767432,1758841839222,-500.0,0.00019344,2]
[387767435,1758841839232,-500.0,0.00019344,2]
[387767437,1758841839242,-500.0,0.00019344,2]
[387767439,1758841839251,-500.0,0.00019344,2]
[387767441,1758841839261,-500.0,0.00019344,2]
[387767443,1758841839270,-500.0,0.00019344,2]
[387767445,1758841839279,-500.0,0.00019344,2]
[387767446,1758841839289,-500.0,0.00019344,2]
[387767449,1758841839299,-500.0,0.00019344,2]
[387767451,1758841839309,-500.0,0.00019344,2]
[387767453,1758841839319,-500.0,0.00019344,2]
[387767454,1758841839330,-500.0,0.00019344,2]
[387767456,1758841839340,-389.54135514,0.00019344,2]
[387767458,1758841839350,-381.54482538,0.00019345,2]
[387767461,1758841839360,-480.0,0.00019345,2]
[387767462,1758841839370,-480.0,0.00019345,2]
[387767465,1758841839380,-480.0,0.00019345,2]
[387767467,1758841839391,-480.0,0.00019345,2]
[387767469,1758841839401,-480.0,0.00019345,2]
[387767480,1758841839500,-480.0,0.00019346,2]
[387767482,1758841839509,-480.0,0.00019346,2]
[387767484,1758841839519,-480.0,0.00019346,2]
[387767486,1758841839529,-624.96,0.00019346,2]
[387767488,1758841839539,-480.0,0.00019346,2]
[387767490,1758841839549,-480.0,0.00019346,2]
[387767492,1758841839559,-562.24,0.00019346,2]
[387767494,1758841839568,-480.0,0.00019346,2]
[387767496,1758841839578,-480.0,0.00019346,2]
[387767498,1758841839587,-480.0,0.00019346,2]
[387767500,1758841839597,-478.31333077,0.00019346,2]
[387767502,1758841839606,-480.0,0.00019346,2]
[387767504,1758841839616,-480.0,0.00019346,2]
[387767506,1758841839628,-480.0,0.00019346,2]
[387767508,1758841839638,-480.0,0.00019346,2]
[387767510,1758841839648,-480.0,0.00019346,2]
[387767512,1758841839658,-480.0,0.00019346,2]
[387767514,1758841839667,-480.0,0.00019346,2]
[387767516,1758841839678,-480.0,0.00019346,2]
[387767518,1758841839688,-480.0,0.00019346,2]
[387767520,1758841839698,-480.0,0.00019346,2]
[387767522,1758841839709,-480.0,0.00019346,2]
[387767524,1758841839720,-480.0,0.00019346,2]
[387767526,1758841839729,-480.0,0.00019346,2]
[387767528,1758841839739,-480.0,0.00019346,2]
[387767530,1758841839748,-480.0,0.00019346,2]
[387767532,1758841839757,-480.0,0.00019346,2]
[387767534,1758841839766,-480.0,0.00019346,2]
[387767536,1758841839776,-480.0,0.00019346,2]
[387767538,1758841839785,-480.0,0.00019348,2]
[387767540,1758841839796,-480.0,0.00019348,2]
[387767542,1758841839805,-480.0,0.00019348,2]
[387767544,1758841839815,-480.0,0.00019348,2]
[387767547,1758841839824,-480.0,0.00019348,2]
[387767549,1758841839833,-480.0,0.00019348,2]
[387767551,1758841839843,-480.0,0.00019348,2]
[387767553,1758841839852,-480.0,0.00019348,2]
[387767554,1758841839861,-480.0,0.00019348,2]
[387767556,1758841839871,-480.0,0.00019348,2]
[387767558,1758841839881,-480.0,0.00019348,2]
[387767560,1758841839890,-480.0,0.00019348,2]
[387767562,1758841839900,-480.0,0.00019348,2]
[387767564,1758841839909,-480.0,0.00019348,2]
[387767566,1758841839918,-480.0,0.00019348,2]
[387767567,1758841839928,-480.0,0.00019348,2]
[387767569,1758841839937,-480.0,0.00019348,2]
[387767571,1758841839947,-480.0,0.00019348,2]
[387767573,1758841839956,-480.0,0.00019348,2]
[387767575,1758841839968,-480.0,0.00019348,2]
[387767577,1758841839977,-480.0,0.00019348,2]
[387767579,1758841839987,-480.0,0.00019348,2]
[387767581,1758841839996,-480.0,0.00019348,2]
[387767582,1758841840005,-480.0,0.00019348,2]
[387767584,1758841840015,-2801.14,0.00019348,2]
[387767586,1758841840024,-480.0,0.00019348,2]
[387767588,1758841840033,-480.0,0.00019348,2]
[387767590,1758841840043,-480.0,0.00019348,2]
[387767592,1758841840053,-480.0,0.00019348,2]
[387767594,1758841840063,-480.0,0.00019348,2]
[387767596,1758841840072,-480.0,0.00019348,2]
[387767597,1758841840081,-480.0,0.00019348,2]
[387767599,1758841840091,-490.1,0.00019348,2]
[387767601,1758841840101,-745.13,0.00019348,2]
[387767603,1758841840111,-480.0,0.00019348,2]
[387767605,1758841840121,-480.0,0.00019348,2]
[387767607,1758841840131,-480.0,0.00019348,2]
[387767609,1758841840141,-480.0,0.00019348,2]
[387767611,1758841840150,-480.0,0.00019348,2]
[387767613,1758841840159,-854.32,0.00019348,2]
[387767615,1758841840170,-500.0,0.00019349,2]
[387767617,1758841840180,-504.53882177,0.00019349,2]
[387767618,1758841840189,-480.0,0.0001935,2]
[387767620,1758841840199,-480.0,0.0001935,2]
[387767622,1758841840208,-480.0,0.0001935,2]
[387767624,1758841840217,-480.0,0.0001935,2]
[387767626,1758841840227,-480.0,0.0001935,2]
[387767628,1758841840237,-480.0,0.0001935,2]
[387767630,1758841840246,-480.0,0.0001935,2]
[387767632,1758841840255,-480.0,0.0001935,2]
[387767634,1758841840265,-480.0,0.0001935,2]
[387767636,1758841840274,-480.0,0.0001935,2]
[387767638,1758841840284,-480.0,0.0001935,2]
[387767640,1758841840294,-480.0,0.0001935,2]
[387767642,1758841840303,-480.0,0.0001935,2]
[387767643,1758841840313,-480.0,0.0001935,2]
[387767645,1758841840322,-480.0,0.0001935,2]
[387767647,1758841840331,-480.0,0.0001935,2]
[387767649,1758841840340,-278.66587207,0.0001935,2]
[387767651,1758841840349,-480.0,0.0001935,2]
[387767653,1758841840359,-480.0,0.0001935,2]
[387767654,1758841840368,-480.0,0.0001935,2]
[387767656,1758841840377,-480.0,0.0001935,2]
[387767658,1758841840387,-480.0,0.0001935,2]
[387767660,1758841840396,-480.0,0.0001935,2]
[387767662,1758841840405,-480.0,0.0001935,2]
[387767664,1758841840415,-241.70668548,0.0001935,2]
[387767666,1758841840424,-480.0,0.0001935,2]
[387767667,1758841840433,-480.0,0.0001935,2]
[387767669,1758841840443,-182.99237253,0.0001935,2]
[387767671,1758841840453,-480.0,0.0001935,2]
[387767673,1758841840462,-480.0,0.0001935,2]
[387767675,1758841840472,-480.0,0.0001935,2]
[387767677,1758841840482,-254.01670358,0.0001935,2]
[387767679,1758841840491,-480.0,0.0001935,2]
[387767681,1758841840501,-480.0,0.0001935,2]
[387767683,1758841840511,-480.0,0.0001935,2]
[387767685,1758841840521,-480.0,0.0001935,2]
[387767686,1758841840530,-480.0,0.0001935,2]
[387767688,1758841840540,-480.0,0.0001935,2]
[387767690,1758841840550,-480.0,0.0001935,2]
[387767692,1758841840559,-480.0,0.0001935,2]
[387767694,1758841840568,-174.07556549,0.0001935,2]
[387767696,1758841840578,-480.0,0.0001935,2]
[387767697,1758841840587,-480.0,0.0001935,2]
[387767699,1758841840596,-480.0,0.0001935,2]
[387767701,1758841840606,-480.0,0.0001935,2]
[387767703,1758841840616,-480.0,0.0001935,2]
[387767705,1758841840627,-480.0,0.0001935,2]
[387767707,1758841840637,-480.0,0.0001935,2]
[387767708,1758841840646,-480.0,0.0001935,2]
[387767710,1758841840656,-480.0,0.0001935,2]
[387767712,1758841840666,-480.0,0.0001935,2]
[387767714,1758841840676,-480.0,0.0001935,2]
[387767716,1758841840686,-480.0,0.0001935,2]
[387767718,1758841840695,-481.49860299,0.0001935,2]
[387767720,1758841840709,-480.0,0.0001935,2]
[387767722,1758841840719,-480.0,0.0001935,2]
[387767724,1758841840728,-480.0,0.0001935,2]
[387767726,1758841840739,-480.0,0.0001935,2]
[387767728,1758841840748,-480.0,0.0001935,2]
[387767730,1758841840757,-493.66102529,0.0001935,2]
[387767732,1758841840767,-480.0,0.0001935,2]
[387767734,1758841840777,-480.0,0.0001935,2]
[387767735,1758841840786,-480.0,0.0001935,2]
[387767737,1758841840797,-480.0,0.0001935,2]
[387767739,1758841840806,-480.0,0.0001935,2]
[387767741,1758841840816,-480.0,0.0001935,2]
[387767743,1758841840826,-480.0,0.0001935,2]
[387767745,1758841840835,-480.0,0.0001935,2]
[387767747,1758841840844,-480.0,0.0001935,2]
[387767749,1758841840854,-480.0,0.0001935,2]
[387767751,1758841840864,-480.0,0.0001935,2]
[387767753,1758841840874,-480.0,0.0001935,2]
[387767754,1758841840884,-480.0,0.0001935,2]
[387767756,1758841840894,-480.0,0.0001935,2]
[387767758,1758841840903,-480.0,0.0001935,2]
[387767760,1758841840913,-480.0,0.0001935,2]
[387767762,1758841840922,-480.0,0.0001935,2]
[387767764,1758841840932,-468.05215987,0.0001935,2]
[387767766,1758841840942,-480.0,0.0001935,2]
[387767768,1758841840952,-480.0,0.0001935,2]
[387767770,1758841840961,-480.0,0.0001935,2]
[387767772,1758841840971,-480.0,0.0001935,2]
[387767774,1758841840980,-480.0,0.0001935,2]
[387767776,1758841840989,-480.0,0.0001935,2]
[387767778,1758841840999,-480.0,0.0001935,2]
[387767779,1758841841008,-480.0,0.0001935,2]
[387767781,1758841841017,-480.0,0.0001935,2]
[387767783,1758841841027,-480.0,0.0001935,2]
[387767785,1758841841036,-480.0,0.0001935,2]
[387767787,1758841841046,-480.0,0.0001935,2]
[387767789,1758841841055,-480.0,0.0001935,2]
[387767790,1758841841064,-480.0,0.0001935,2]
[387767792,1758841841073,-480.0,0.0001935,2]
[387767794,1758841841082,-480.0,0.0001935,2]
[387767796,1758841841092,-480.0,0.0001935,2]
[387767798,1758841841102,-480.0,0.0001935,2]
[387767800,1758841841112,-480.0,0.0001935,2]
[387767802,1758841841122,-400.37627108,0.0001935,2]
[387767804,1758841841131,-480.0,0.0001935,2]
[387767806,1758841841141,-480.0,0.0001935,2]
[387767808,1758841841151,-504.72565172,0.0001935,2]
[387767810,1758841841160,-480.0,0.0001935,2]
[387767812,1758841841169,-480.0,0.0001935,2]
[387767814,1758841841179,-480.0,0.0001935,2]
[387767816,1758841841189,-480.0,0.0001935,2]
[387767817,1758841841198,-480.0,0.0001935,2]
[387767819,1758841841208,-480.0,0.0001935,2]
[387767821,1758841841217,-480.0,0.0001935,2]
[387767823,1758841841228,-480.0,0.0001935,2]
[387767825,1758841841237,-480.0,0.0001935,2]
[387767827,1758841841247,-480.0,0.0001935,2]
[387767829,1758841841256,-480.0,0.0001935,2]
[387767831,1758841841266,-480.0,0.0001935,2]
[387767833,1758841841275,-480.0,0.0001935,2]
[387767835,1758841841285,-480.0,0.0001935,2]
[387767836,1758841841295,-480.0,0.0001935,2]
[387767838,1758841841305,-480.0,0.0001935,2]
[387767840,1758841841315,-480.0,0.0001935,2]
[387767842,1758841841324,-480.0,0.0001935,2]
[387767844,1758841841334,-480.0,0.0001935,2]
[387767846,1758841841345,-480.0,0.0001935,2]
[387767848,1758841841354,-480.0,0.0001935,2]
[387767850,1758841841364,-341.65844923,0.0001935,2]
[387767852,1758841841374,-480.0,0.0001935,2]
[387767854,1758841841384,-480.0,0.0001935,2]
[387767856,1758841841393,-480.0,0.0001935,2]
[387767858,1758841841403,-480.0,0.0001935,2]
[387767860,1758841841414,-480.0,0.0001935,2]
[387767862,1758841841424,-480.0,0.0001935,2]
[387767864,1758841841434,-480.0,0.0001935,2]
[387767866,1758841841445,-480.0,0.0001935,2]
[387767868,1758841841454,-480.0,0.0001935,2]
[387767870,1758841841463,-480.0,0.0001935,2]
[387767872,1758841841474,-480.0,0.0001935,2]
[387767874,1758841841484,-480.0,0.0001935,2]
[387767876,1758841841494,-480.0,0.0001935,2]
[387767878,1758841841504,-480.0,0.0001935,2]
[387767880,1758841841514,-480.0,0.0001935,2]
[387767882,1758841841524,-480.0,0.0001935,2]
[387767884,1758841841536,-480.0,0.0001935,2]
[387767886,1758841841546,-480.0,0.0001935,2]